bitfinex-derivatives/quotes_SOLF0:USTF0_20251119
["timestamp","ask_amount","ask_price","bid_price","bid_amount"]
[1763570460222,3.35,133.58,133.51,108.1162]
[1763570460429,3.35,133.62,133.52,3.18]
[1763570460624,111.58830734,133.63,133.52,3.18]
[1763570460625,3.35,133.61,133.52,3.18]
[1763570460828,3.35,133.61,133.53,3.18]
[1763570461030,3.35,133.61,133.56,9.9235]
[1763570461326,3.35,133.61,133.56,3.18]
[1763570461539,3.35,133.61,133.53,104.919]
[1763570461540,3.40151102,133.6,133.57,0.05228073]
[1763570461827,13.6420031,133.73,133.58,1.5]
[1763570462134,250.7573499,133.93,133.58,1.5]
[1763570462135,104.5836,133.97,133.77,6.7327]
[1763570462326,104.6036,133.94,133.81,6.73770734]
[1763570462523,104.6121,133.93,133.81,29.05213734]
[1763570462738,104.6214,133.92,133.9,0.00254889]
[1763570463033,104.6214,133.92,133.87,13.86382334]
[1763570463034,0.04871907,133.92,133.87,13.86382334]
[1763570463231,0.04871907,133.92,133.81,29.05213734]
[1763570463433,104.6036,133.94,133.81,133.75393734]
[1763570463727,111.3282,133.94,133.82,104.6933]
[1763570463927,3.19,133.88,133.87,0.05622739]
[1763570464532,0.04845432,133.89,133.87,0.05622739]
[1763570465637,6.73770734,133.97,133.88,7.61462719]
[1763570465822,111.32010734,133.97,133.89,7.61462719]
[1763570466027,111.3162,133.96,133.9,0.91462719]
[1763570466232,6.7237,133.96,133.85,104.6688]
[1763570466439,111.3123,133.96,133.85,111.3973]
[1763570466627,0.05662723,133.92,133.89,0.05132704]
[1763570467740,3.07662723,133.92,133.89,0.05132704]
[1763570468737,0.05662723,133.92,133.89,0.05132704]
[1763570469038,0.05662723,133.92,133.9,104.6294]
[1763570469245,3.02,134.0,133.9,111.3554]
[1763570469434,3.02,134.0,133.92,6.73770734]
[1763570469833,3.02,134.0,133.91,6.73770734]
[1763570470128,3.02,133.97,133.85,104.6703]
[1763570470334,3.02,133.94,133.85,6.73770734]
[1763570471337,3.07635691,133.91,133.88,0.05709503]
[1763570472041,0.05635691,133.91,133.88,0.05709503]
[1763570472432,0.05635691,133.91,133.9,6.73770734]
[1763570473141,3.02,133.99,133.9,111.36540734]
[1763570473336,3.02,133.98,133.9,6.73770734]
[1763570473531,3.02,133.98,133.88,23.03770734]
[1763570473928,3.02,133.97,133.88,6.73770734]
[1763570474144,0.05250484,133.94,133.91,0.05748919]
[1763570474542,0.05250484,133.94,133.91,104.67798919]
[1763570474731,0.05250484,133.94,133.91,0.05748919]
[1763570475039,0.05250484,133.94,133.91,13.52069653]
[1763570475242,104.5295,134.04,133.93,104.6059]
[1763570475439,3.02,134.03,133.93,104.6059]
[1763570475640,3.02,134.03,133.92,104.6181]
[1763570475841,3.02,134.03,133.94,6.7242]
[1763570476245,0.04754024,134.0,133.97,0.05319226]
[1763570476437,3.06754024,134.0,133.97,0.05319226]
[1763570478053,3.06754024,134.0,133.98,7.46573867]
[1763570478245,3.06754024,134.0,133.99,4.11573867]
[1763570480548,4.56754024,134.0,133.99,4.11573867]
[1763570480845,3.06754024,134.0,133.99,4.11573867]
[1763570481353,0.04754024,134.0,133.99,6.51573867]
[1763570481646,0.04754024,134.0,133.99,4.11573867]
[1763570482954,0.04754024,134.0,133.97,0.05319226]
[1763570483648,3.06754024,134.0,133.97,0.05319226]
[1763570485244,9.8522,133.99,133.97,0.05319226]
[1763570485440,6.7222,133.99,133.97,0.05319226]
[1763570485645,3.13,133.98,133.97,0.05319226]
[1763570487156,3.13,133.98,133.89,15.86430734]
[1763570487454,6.7241,133.95,133.87,2.4]
[1763570487651,3.13,133.94,133.87,2.4]
[1763570488046,3.17945984,133.92,133.89,0.05036181]
[1763570488245,3.13,133.88,133.81,24.71443]
[1763570488551,3.13,133.87,133.81,22.31443]
[1763570488751,3.13,133.87,133.8,2.4]
[1763570489149,0.05372773,133.85,133.82,0.05311218]
[1763570489660,0.05372773,133.85,133.82,2.45311218]
[1763570490356,0.05372773,133.85,133.82,0.05311218]
[1763570491365,0.05372773,133.85,133.82,2.45311218]
[1763570491656,0.05372773,133.85,133.84,2.4]
[1763570491861,3.13,133.92,133.85,6.7286]
[1763570492354,3.13,133.92,133.86,13.55532837]
[1763570492555,3.13,133.95,133.87,9.17685773]
[1763570492751,0.05460168,133.92,133.88,6.82685773]
[1763570492955,0.05460168,133.92,133.9,0.05678077]
[1763570493359,0.05460168,133.92,133.9,2.40678077]
[1763570493753,0.05460168,133.92,133.91,9.18270231]
[1763570494254,3.13,133.99,133.91,9.18270231]
[1763570494453,3.13,133.99,133.92,6.83270231]
[1763570494665,3.13,133.99,133.93,6.83270231]
[1763570494866,3.13,133.96,133.93,6.83270231]
[1763570495163,107.77413047,133.96,133.93,0.05669898]
[1763570495364,3.18373047,133.96,133.93,0.05669898]
[1763570495561,3.13,133.95,133.93,0.05669898]
[1763570495757,3.13,133.95,133.87,2.35]
[1763570495959,9.8542,133.95,133.88,6.84866675]
[1763570496259,3.13,133.99,133.9,2.35]
[1763570496461,114.40270734,134.03,133.93,2.35]
[1763570496771,0.05760212,133.99,133.97,0.04827487]
[1763570497264,0.05760212,133.99,133.97,2.39827487]
[1763570497465,16.2,134.05,133.98,2.35]
[1763570497972,104.4817,134.1,134.02,2.35]
[1763570497973,3.21,134.1,134.02,2.35]
[1763570498359,6.7171,134.09,134.02,2.35]
[1763570498574,0.05020121,134.07,134.04,2.40345431]
[1763570499758,0.05020121,134.07,134.05,2.35]
[1763570499965,0.05020121,134.07,134.04,2.40345431]
[1763570501858,0.05020121,134.07,134.04,0.05345431]
[1763570502157,3.26020121,134.07,134.04,0.05345431]
[1763570502357,107.76390121,134.07,134.04,0.05345431]
[1763570502668,107.7271,134.05,133.97,2.35]
[1763570502873,3.21,134.05,133.97,2.35]
[1763570503066,107.6988,134.09,133.99,2.35]
[1763570503263,3.21,134.09,134.01,2.35]
[1763570503460,0.05449057,134.06,134.04,0.04912119]
[1763570503659,3.26449057,134.06,134.04,0.04912119]
[1763570503864,0.05449057,134.06,134.04,0.04912119]
[1763570504368,0.05449057,134.06,134.05,5.66219171]
[1763570505274,3.21,134.14,134.06,2.3]
[1763570505467,3.21,134.14,134.07,5.66219171]
[1763570505660,3.21,134.14,134.08,5.66219171]
[1763570505973,16.18,134.17,134.1,2.3]
[1763570506166,16.18,134.17,134.11,5.68072462]
[1763570506361,0.05270209,134.15,134.12,5.73260842]
[1763570506565,3.26270209,134.15,134.13,5.68072462]
[1763570506759,3.26270209,134.15,134.12,0.0518838]
[1763570506969,104.4355,134.16,134.13,7.07748401]
[1763570507171,120.6066,134.17,134.14,7.07748401]
[1763570507369,127.3175,134.17,134.15,8.401e-05]
[1763570507580,104.456,134.13,134.05,8.95867524]
[1763570507771,104.456,134.13,134.06,5.69694507]
[1763570507965,6.7159,134.12,134.07,5.69694507]
[1763570508173,6.7159,134.12,134.08,5.69694507]
[1763570508474,6.7161,134.11,134.09,5.69694507]
[1763570508775,0.05119076,134.11,134.09,0.05651636]
[1763570509378,0.05119076,134.11,134.1,5.69674604]
[1763570510071,0.05119076,134.11,134.1,9.02674604]
[1763570510276,16.18,134.17,134.1,9.02674604]
[1763570510571,16.18,134.17,134.11,5.69674604]
[1763570510780,16.18,134.17,134.12,5.69674604]
[1763570511071,3.21,134.16,134.13,5.69674604]
[1763570511278,3.26467105,134.16,134.13,0.0557118]
[1763570511482,0.05467105,134.16,134.14,5.68979]
[1763570511666,0.05467105,134.16,134.15,5.6896198]
[1763570512066,0.00467105,134.16,134.15,9.0196198]
[1763570512267,0.00467105,134.16,134.15,10.5196198]
[1763570512471,3.21,134.24,134.16,3.33]
[1763570512678,3.21,134.24,134.17,5.6896198]
[1763570512867,3.21,134.24,134.15,104.4364]
[1763570512868,120.5094,134.27,134.18,9.0196198]
[1763570513072,19.37,134.27,134.19,5.6896198]
[1763570513277,3.21,134.26,134.2,5.6896198]
[1763570513477,0.05140218,134.24,134.22,0.05111041]
[1763570513983,3.26140218,134.24,134.22,0.05111041]
[1763570514278,3.21,134.23,134.22,0.05111041]
[1763570515580,3.21,134.23,134.11,120.6273]
[1763570515581,107.6026,134.21,134.11,10.06770734]
[1763570515790,104.4003,134.2,134.12,8.99607233]
[1763570516089,107.6026,134.21,134.13,5.66607233]
[1763570516090,9.9232,134.17,134.13,5.66607233]
[1763570516490,0.04858769,134.16,134.14,0.05693017]
[1763570516988,0.04858769,134.16,134.14,3.38693017]
[1763570517190,0.04858769,134.16,134.14,0.05693017]
[1763570517785,0.04858769,134.16,134.14,3.38693017]
[1763570518089,0.04858769,134.16,134.15,8.99355733]
[1763570518598,16.16,134.21,134.16,3.33]
[1763570518892,3.21,134.24,134.17,8.99355733]
[1763570519094,16.14,134.27,134.18,3.33]
[1763570519393,0.05642483,134.24,134.22,3.33]
[1763570519592,0.05642483,134.24,134.23,6.84949864]
[1763570520482,0.05642483,134.24,134.22,3.33]
[1763570520684,0.05642483,134.24,134.23,6.84843395]
[1763570521489,3.21,134.29,134.23,6.84843395]
[1763570521794,3.21,134.29,134.19,3.33]
[1763570521795,3.21,134.29,134.24,6.84843395]
[1763570521990,3.21,134.26,134.16,3.33]
[1763570522194,3.21,134.26,134.18,3.33]
[1763570522498,0.05548359,134.23,134.21,0.04953686]
[1763570522884,3.26548359,134.23,134.21,0.04953686]
[1763570523090,3.21,134.22,134.15,3.33]
[1763570523397,19.35,134.25,134.15,3.33]
[1763570523590,6.7101,134.23,134.16,6.7132]
[1763570523794,6.7101,134.23,134.16,3.33]
[1763570523997,107.5949,134.22,134.12,3.33]
[1763570524190,0.0549351,134.18,134.16,0.05440185]
[1763570524491,3.2649351,134.18,134.16,0.05440185]
[1763570524692,9.9776351,134.18,134.16,0.05440185]
[1763570524899,0.0549351,134.18,134.16,0.05440185]
[1763570525098,0.0549351,134.18,134.16,3.38440185]
[1763570525898,0.0549351,134.18,134.16,0.05440185]
[1763570526103,0.0549351,134.18,134.16,3.38440185]
[1763570526299,0.0549351,134.18,134.16,10.09760185]
[1763570526498,0.0549351,134.18,134.17,3.33]
[1763570526795,0.0549351,134.18,134.16,0.05440185]
[1763570527589,3.0849351,134.18,134.16,0.05440185]
[1763570527992,9.7975351,134.18,134.16,0.05440185]
[1763570528202,0.0549351,134.18,134.16,0.05440185]
[1763570528597,0.0549351,134.18,134.16,3.10440185]
[1763570529592,0.0549351,134.18,134.16,9.81750185]
[1763570529791,0.0549351,134.18,134.17,3.05]
[1763570530098,19.17,134.26,134.17,3.05]
[1763570530298,6.7091,134.25,134.19,9.7617]
[1763570530700,6.7091,134.25,134.17,104.4205]
[1763570530701,16.14,134.26,134.2,3.05]
[1763570530897,16.14,134.26,134.21,9.7606]
[1763570531205,6.7083,134.27,134.18,104.4092]
[1763570531206,0.05399975,134.25,134.22,3.1005764]
[1763570531400,0.05399975,134.25,134.23,6.7097]
[1763570531707,0.05399975,134.25,134.24,3.05]
[1763570532303,0.05399975,134.25,134.22,0.0505764]
[1763570532504,0.05399975,134.25,134.22,3.1005764]
[1763570532808,0.05399975,134.25,134.22,9.8107764]
[1763570533106,0.05399975,134.25,134.22,0.0505764]
[1763570533407,0.05399975,134.25,134.22,3.1005764]
[1763570533706,0.05399975,134.25,134.22,0.0505764]
[1763570536005,16.14,134.32,134.22,3.1005764]
[1763570536209,16.14,134.32,134.2,104.397]
[1763570536210,3.03,134.36,134.25,3.05]
[1763570536700,3.03,134.28,134.18,9.86287495]
[1763570536895,3.03,134.27,134.2,3.05]
[1763570537094,120.4444,134.3,134.23,3.05]
[1763570537095,0.05301316,134.25,134.23,3.05]
[1763570537300,19.15,134.3,134.24,7.13621853]
[1763570537506,19.15,134.3,134.25,7.13621853]
[1763570537702,0.05375178,134.28,134.26,7.19018876]
[1763570537913,0.05375178,134.28,134.27,7.13621853]
[1763570539702,4.56375178,134.28,134.2,9.86287495]
[1763570539903,3.08375178,134.28,134.21,12.65656746]
[1763570540110,3.08375178,134.28,134.22,5.68304428]
[1763570540408,9.7386,134.26,134.23,5.68304428]
[1763570540608,9.7386,134.26,134.2,3.05]
[1763570540803,0.05074901,134.24,134.22,0.05611116]
[1763570541008,0.05074901,134.24,134.23,5.69155512]
[1763570541315,19.15,134.3,134.23,15.45115581]
[1763570541497,3.03,134.33,134.26,3.05]
[1763570541698,3.03,134.33,134.27,5.69145581]
[1763570541900,3.03,134.33,134.28,5.69145581]
[1763570542109,3.03,134.33,134.29,5.69145581]
[1763570542312,3.07903811,134.32,134.3,5.74318432]
[1763570542498,3.03,134.31,134.3,0.05172851]
[1763570543501,0.04903811,134.32,134.3,0.05172851]
[1763570543702,0.04903811,134.32,134.31,5.70231883]
[1763570543910,0.04903811,134.32,134.31,5.70210372]
[1763570544403,0.04903811,134.32,134.3,0.05172851]
[1763570544404,3.07903811,134.32,134.3,0.05172851]
[1763570544606,9.78483811,134.32,134.3,0.05172851]
[1763570544812,3.03,134.31,134.3,0.05172851]
[1763570545810,9.9769,134.29,134.24,10.15287495]
[1763570546010,104.3106,134.32,134.25,15.85690821]
[1763570546212,104.3106,134.32,134.26,5.70403326]
[1763570546413,107.5892,134.31,134.27,5.70403326]
[1763570546612,3.27,134.29,134.23,6.81287495]
[1763570546810,0.05671559,134.27,134.25,0.0525517]
[1763570547011,0.05671559,134.27,134.26,5.70551726]
[1763570547313,19.39,134.33,134.26,12.51839221]
[1763570547610,104.2596,134.39,134.28,3.34]
[1763570547611,3.27,134.38,134.28,3.34]
[1763570547810,3.27,134.37,134.29,12.51839221]
[1763570548006,3.27,134.37,134.3,5.70551726]
[1763570548206,3.27,134.37,134.27,6.81287495]
[1763570548512,3.27,134.31,134.28,5.70151586]
[1763570548715,3.27,134.29,134.24,6.81287495]
[1763570549012,3.32481062,134.28,134.25,5.75234346]
[1763570549316,3.32481062,134.28,134.26,5.70147358]
[1763570549317,10.03241062,134.28,134.26,5.70147358]
[1763570549511,10.03241062,134.28,134.27,5.70147358]
[1763570549512,0.05481062,134.28,134.27,5.70147358]
[1763570549919,3.27,134.38,134.28,3.34]
[1763570550209,3.27,134.36,134.29,5.70147358]
[1763570550414,3.27,134.36,134.3,5.70147358]
[1763570550606,3.27,134.36,134.31,5.70147358]
[1763570550800,16.12,134.4,134.33,3.34]
[1763570551006,16.12,134.4,134.34,5.70147358]
[1763570551007,19.39,134.4,134.34,5.70147358]
[1763570551202,3.32037976,134.38,134.35,5.75013881]
[1763570551420,3.32037976,134.38,134.35,0.04866523]
[1763570552616,3.27,134.37,134.35,0.04866523]
[1763570552814,0.05037976,134.38,134.35,0.04866523]
[1763570553004,0.05037976,134.38,134.36,5.70147997]
[1763570553313,3.32037976,134.38,134.35,0.04866523]
[1763570553715,10.02307976,134.38,134.35,0.04866523]
[1763570554018,3.32037976,134.38,134.35,0.04866523]
[1763570554219,3.32037976,134.38,134.36,7.07948677]
[1763570554518,3.32037976,134.38,134.37,7.07948677]
[1763570554915,0.05037976,134.38,134.37,7.07948677]
[1763570555118,3.32037976,134.38,134.37,7.07948677]
[1763570555722,3.32037976,134.38,134.35,0.04866523]
[1763570555919,0.05037976,134.38,134.36,7.07800013]
[1763570556118,0.05037976,134.38,134.35,0.04866523]
[1763570556324,3.32037976,134.38,134.36,7.08057868]
[1763570556618,3.32037976,134.38,134.37,7.868e-05]
[1763570556809,3.27,134.36,134.35,0.04866523]
[1763570557005,9.9734,134.36,134.35,0.04866523]
[1763570557617,9.9745,134.34,134.27,3.34]
[1763570557814,3.27,134.34,134.27,3.34]
[1763570558018,3.17,134.38,134.27,10.15287495]
[1763570558313,3.17,134.36,134.27,10.15287495]
[1763570558621,0.0478237,134.33,134.3,0.04713731]
[1763570559512,3.2178237,134.33,134.3,0.04713731]
[1763570559713,104.3477,134.27,134.16,3.15]
[1763570560013,16.12,134.26,134.16,3.15]
[1763570560415,104.3626,134.25,134.16,3.15]
[1763570560714,0.05411929,134.22,134.19,0.04752819]
[1763570561918,6.7112,134.21,134.19,0.04752819]
[1763570562419,104.412,134.19,134.08,3.15]
[1763570562718,16.18,134.2,134.1,107.6252]
[1763570562926,16.18,134.2,134.14,3.15]
[1763570563113,104.371,134.24,134.14,3.15]
[1763570563314,104.395,134.21,134.14,3.15]
[1763570563624,6.7128,134.18,134.1,9.8662]
[1763570564515,6.7132,134.17,134.1,3.15]
[1763570564716,6.7132,134.17,134.08,6.7172]
[1763570564717,0.05445408,134.15,134.12,3.20667993]
[1763570564914,0.05445408,134.15,134.12,0.05667993]
[1763570565115,0.05445408,134.15,134.12,3.20667993]
[1763570565812,0.05445408,134.15,134.12,0.05667993]
[1763570566013,111.1617,134.14,134.12,0.05667993]
[1763570566209,104.4626,134.12,134.04,3.15]
[1763570566816,120.6515,134.11,134.04,3.15]
[1763570567219,0.05149297,134.09,134.06,0.04983885]
[1763570568924,0.05149297,134.09,134.06,3.19983885]
[1763570569223,10.45820226,134.18,134.07,3.15]
[1763570569427,104.4317,134.16,134.07,3.15]
[1763570569827,6.7143,134.15,134.07,3.15]
[1763570570326,0.05404614,134.12,134.1,0.05468594]
[1763570571424,120.69684614,134.12,134.03,3.15]
[1763570571620,120.6428,134.12,134.03,3.15]
[1763570571822,16.18,134.12,134.03,3.15]
[1763570572121,16.18,134.12,134.04,3.15]
[1763570572524,0.05290901,134.09,134.07,3.2039864]
[1763570574424,0.05290901,134.09,134.07,0.0539864]
[1763570575326,16.18,134.12,134.07,3.2039864]
[1763570575526,6.7131,134.17,134.07,3.2039864]
[1763570575732,120.5788,134.18,134.07,3.15]
[1763570576035,120.5788,134.18,134.08,6.7171]
[1763570576036,104.4237,134.17,134.08,6.7171]
[1763570576221,0.05589058,134.14,134.11,3.20632395]
[1763570577234,0.05589058,134.14,134.11,0.05632395]
[1763570578031,104.50569058,134.14,134.11,0.05632395]
[1763570578228,104.4571,134.13,134.03,3.15]
[1763570578428,104.4721,134.11,134.03,3.15]
[1763570578634,6.7172,134.09,134.03,3.15]
[1763570579332,0.05653125,134.07,134.05,3.19872702]
[1763570579531,0.05193399,134.07,134.05,3.19872702]
[1763570580524,0.05193399,134.07,134.05,0.04872702]
[1763570581336,6.67593077,134.16,134.05,3.19872702]
[1763570581538,104.4472,134.14,134.05,3.15]
[1763570581835,22.83593077,134.16,134.05,9.8688]
[1763570582037,120.5946,134.16,134.06,3.15]
[1763570582237,127.27053077,134.16,134.06,3.15]
[1763570582440,0.05559524,134.12,134.1,0.05237407]
[1763570582827,6.7177,134.08,134.02,9.8703]
[1763570583036,104.4626,134.12,134.03,3.15]
[1763570583239,111.13493077,134.13,134.03,3.15]
[1763570583541,6.7172,134.09,134.03,3.15]
[1763570583734,104.4861,134.09,134.03,3.15]
[1763570584039,6.7686171,134.07,134.05,0.0490309]
[1763570585641,6.7202,134.03,133.97,9.8725]
[1763570585833,104.5348,134.03,133.97,3.15]
[1763570586039,127.34363077,134.04,133.97,3.15]
[1763570586234,16.14,134.04,133.97,3.15]
[1763570586734,0.0518982,134.02,133.99,3.20437069]
[1763570587145,0.0518982,134.02,133.99,9.92617069]
[1763570587343,0.0518982,134.02,134.0,3.15]
[1763570588242,0.0518982,134.02,133.99,0.05437069]
[1763570588446,0.0518982,134.02,133.99,3.07437069]
[1763570588649,0.0518982,134.02,133.99,0.05437069]
[1763570589241,6.7211,134.01,133.99,0.05437069]
[1763570589434,0.0518982,134.02,133.99,3.07437069]
[1763570589838,22.81593077,134.1,134.01,3.02]
[1763570590146,16.14,134.1,134.01,3.02]
[1763570590439,16.14,134.1,134.03,3.02]
[1763570590844,0.04942187,134.08,134.05,0.05682245]
[1763570591047,6.76692187,134.08,134.05,0.05682245]
[1763570591236,6.76692187,134.08,134.05,3.07682245]
[1763570591738,0.04942187,134.08,134.05,3.07682245]
[1763570591933,0.04942187,134.08,134.05,0.05682245]
[1763570592543,0.04942187,134.08,134.05,3.07682245]
[1763570593144,0.04942187,134.08,134.05,9.79552245]
[1763570593541,0.04942187,134.08,134.06,3.02]
[1763570593843,0.04942187,134.08,134.05,3.07682245]
[1763570594338,0.04942187,134.08,134.05,0.05682245]
[1763570594544,112.72285264,134.08,133.98,3.02]
[1763570594745,104.5017,134.07,133.98,3.02]
[1763570594939,6.7196,134.04,133.99,3.02]
[1763570595137,6.7196,134.04,133.92,126.64496482]
[1763570595138,104.5296,134.04,133.92,126.64496482]
[1763570595340,104.5296,134.04,133.95,3.02]
[1763570595535,6.7211,134.01,133.98,0.0499259]
[1763570595741,0.04939464,134.01,133.98,0.0499259]
[1763570596847,0.04939464,134.01,133.99,3.02]
[1763570598347,0.04939464,134.01,133.98,0.0499259]
[1763570598850,0.04939464,134.01,133.98,3.0699259]
[1763570600546,6.77049464,134.01,133.98,3.0699259]
[1763570601041,6.7218,134.0,133.98,0.0499259]
[1763570601548,6.7222,133.99,133.92,3.02]
[1763570601736,6.67593077,134.02,133.92,3.02]
[1763570601940,104.5327,134.03,133.92,3.02]
[1763570602137,104.5406,134.02,133.93,3.02]
[1763570602352,127.34153077,134.04,133.93,3.02]
[1763570602544,0.05372187,134.0,133.97,0.05499629]
[1763570603337,5.34892002,134.0,133.97,0.05499629]
[1763570603537,5.29519815,133.99,133.97,0.05499629]
[1763570603740,6.7221,133.99,133.97,0.05499629]
[1763570604340,5.3115358,133.98,133.97,0.05499629]
[1763570604947,6.7236,133.96,133.89,9.9266]
[1763570605154,6.7236,133.96,133.9,3.2]
[1763570605347,6.86465247,134.0,133.9,3.2]
[1763570605544,5.31065514,133.99,133.92,3.2]
[1763570605740,5.31065514,133.98,133.92,3.2]
[1763570605950,5.31065514,133.97,133.94,0.05673031]
[1763570606148,6.77079016,133.96,133.94,0.05673031]
[1763570606351,5.31160544,133.95,133.94,0.05673031]
[1763570606552,5.31160544,133.95,133.88,3.2]
[1763570606736,104.63839016,133.96,133.88,3.2]
[1763570606737,5.31160544,133.94,133.88,3.2]
[1763570606940,5.31160544,133.93,133.88,3.2]
[1763570607250,5.31160544,133.93,133.84,3.2]
[1763570607251,5.31160544,133.92,133.84,3.2]
[1763570607451,5.30535899,133.91,133.84,3.2]
[1763570607654,0.05451965,133.89,133.86,3.25127656]
[1763570608055,6.78161965,133.89,133.86,3.25127656]
[1763570608354,0.05451965,133.89,133.86,3.25127656]
[1763570609452,0.00451965,133.89,133.86,3.25127656]
[1763570609748,6.7247,133.94,133.88,3.2]
[1763570609954,13.54058324,133.97,133.88,3.2]
[1763570610148,5.30593618,133.96,133.89,3.2]
[1763570610344,6.7232,133.97,133.91,6.7258]
[1763570610654,0.0531732,133.95,133.93,0.05054097]
[1763570611253,0.0531732,133.95,133.93,3.25054097]
[1763570611645,0.0531732,133.95,133.93,0.05054097]
[1763570611851,5.30793539,133.94,133.93,0.05054097]
[1763570612454,0.0531732,133.95,133.93,0.05054097]
[1763570612655,5.30538215,133.94,133.93,0.05054097]
[1763570612849,5.30538215,133.94,133.86,3.2]
[1763570613045,5.30538215,133.93,133.86,3.2]
[1763570613358,104.5986,133.95,133.86,3.2]
[1763570613557,5.30504811,133.94,133.9,3.2]
[1763570613853,13.58825247,133.96,133.91,0.04855526]
[1763570613854,0.05486521,133.93,133.91,0.04855526]
[1763570614165,6.78006521,133.93,133.86,3.2]
[1763570614350,0.05486521,133.93,133.86,3.2]
[1763570614654,104.629,133.91,133.82,3.2]
[1763570614855,5.30228261,133.9,133.82,3.2]
[1763570615158,0.05151923,133.87,133.85,0.0507848]
[1763570615354,6.77971923,133.87,133.85,0.0507848]
[1763570615556,0.05151923,133.87,133.85,0.0507848]
[1763570619256,0.05151923,133.87,133.85,3.0607848]
[1763570619448,120.6969,133.95,133.86,3.01]
[1763570619647,12.00942708,133.94,133.86,3.01]
[1763570619847,5.33349631,133.93,133.82,3.01]
[1763570620060,109.94999631,133.93,133.82,3.01]
[1763570620256,5.33349631,133.92,133.82,3.01]
[1763570620463,6.7271,133.89,133.82,3.01]
[1763570620862,0.05577319,133.87,133.84,0.05335044]
[1763570621058,6.86465247,133.94,133.84,3.06335044]
[1763570621266,22.98465247,133.98,133.86,3.01]
[1763570621450,5.33774107,133.97,133.86,3.01]
[1763570621765,5.33774107,133.97,133.86,9.7383]
[1763570622064,0.05262581,133.93,133.9,0.05179215]
[1763570623059,0.05262581,133.93,133.9,3.06179215]
[1763570624362,0.05262581,133.93,133.9,0.05179215]
[1763570626864,6.77772581,133.93,133.9,0.05179215]
[1763570627065,0.05262581,133.93,133.9,0.05179215]
[1763570627255,5.39654088,133.93,133.9,0.05179215]
[1763570627654,104.622,133.92,133.84,3.01]
[1763570627855,104.6137,133.93,133.84,3.01]
[1763570628063,6.7261,133.91,133.84,3.01]
[1763570628362,104.6137,133.93,133.84,3.01]
[1763570628565,5.34709268,133.92,133.84,3.01]
[1763570628767,0.0517784,133.9,133.87,0.04951179]
[1763570629266,6.7783784,133.9,133.87,0.04951179]
[1763570629770,0.0517784,133.9,133.87,0.04951179]
[1763570630064,6.7271,133.89,133.87,0.04951179]
[1763570630853,0.0517784,133.9,133.87,0.04951179]
[1763570631256,0.0517784,133.9,133.87,3.05951179]
[1763570631857,0.0517784,133.9,133.88,9.7373]
[1763570632064,0.0517784,133.9,133.89,3.01]
[1763570633869,16.1,133.94,133.87,0.04951179]
[1763570633870,16.1,133.94,133.91,3.01]
[1763570634469,16.1,133.94,133.9,6.7262]
[1763570634670,16.1,133.94,133.88,9.7373]
[1763570634866,0.05712823,133.92,133.9,0.05085885]
[1763570638662,6.86465247,134.0,133.91,3.01]
[1763570638864,5.37701922,133.99,133.91,3.01]
[1763570639074,5.37701922,133.98,133.91,3.01]
[1763570639272,12.09991922,133.97,133.92,3.01]
[1763570639471,5.37701922,133.96,133.92,3.01]
[1763570639662,0.04708039,133.95,133.93,0.05265538]
[1763570639868,5.42409961,133.95,133.93,0.05228703]
[1763570640070,5.37701922,133.94,133.93,0.05228703]
[1763570640576,5.37701922,133.94,133.87,3.01]
[1763570640780,16.08,133.96,133.87,3.01]
[1763570640973,5.38400042,133.95,133.92,3.01]
[1763570641167,6.7235,133.96,133.92,3.01]
[1763570641368,5.38689361,133.95,133.92,3.01]
[1763570641573,6.723,133.97,133.92,3.01]
[1763570641770,0.05096217,133.95,133.92,0.0499719]
[1763570641971,5.38453827,133.94,133.92,0.0499719]
[1763570642278,6.7245,133.94,133.92,0.0499719]
[1763570642468,5.38477495,133.93,133.92,0.0499719]
[1763570642668,6.7257,133.92,133.85,3.01]
[1763570642971,6.88096066,133.95,133.87,3.01]
[1763570643167,5.38171457,133.94,133.87,3.01]